bitfinex/quotes_SOLUSD_20250701
["timestamp","ask_amount","ask_price","bid_price","bid_amount"]
[1751352560169,5.01521135,151.64,151.63,0.2]
[1751352564782,11.70936487,151.65,151.63,0.2]
[1751352565792,6.69415352,151.65,151.63,0.2]
[1751352566007,5.01521135,151.64,151.63,0.2]
[1751352573119,6.69415352,151.65,151.63,0.2]
[1751352573317,11.70936487,151.65,151.63,0.2]
[1751352574725,5.01521135,151.64,151.63,0.2]
[1751352575219,11.70938303,151.65,151.63,0.2]
[1751352575815,9.90404085,151.65,151.63,0.2]
[1751352576390,3.20986917,151.64,151.63,0.2]
[1751352576591,6.69417168,151.65,151.63,0.2]
[1751352576908,3.30986917,151.65,151.63,0.2]
[1751352577110,0.1,151.65,151.63,0.2]
[1751352577288,3.30986917,151.65,151.63,0.2]
[1751352578412,0.1,151.65,151.63,0.2]
[1751352582010,0.1,151.65,151.63,3.40986917]
[1751352583441,18.03974235,151.69,151.63,3.40986917]
[1751352583442,1.5577,151.69,151.63,10.00475334]
[1751352583600,3.20986917,151.68,151.63,6.79488417]
[1751352583807,3.20986917,151.69,151.63,6.79488417]
[1751352584126,3.20986917,151.69,151.64,3.20986917]
[1751352584503,3.20986917,151.69,151.65,3.20986917]
[1751352584710,9.80249652,151.69,151.65,3.20986917]
[1751352586739,3.20986917,151.68,151.64,9.8044006]
[1751352587028,9.80274905,151.68,151.64,3.20986917]
[1751352587324,3.20986917,151.67,151.63,10.00468349]
[1751352587712,3.20986917,151.67,151.63,0.2]
[1751352587913,3.20986917,151.66,151.63,0.2]
[1751352591627,9.80359638,151.66,151.63,0.2]
[1751352593223,0.1,151.68,151.63,10.00486185]
[1751352593423,3.30986917,151.68,151.63,10.00486185]
[1751352593622,9.90273196,151.68,151.63,10.00486185]
[1751352596136,3.20986917,151.67,151.63,10.00486185]
[1751352597736,3.20986917,151.67,151.63,6.79499268]
[1751352597939,3.20986917,151.67,151.63,10.00486185]
[1751352598237,3.20986917,151.66,151.63,0.2]
[1751352599829,9.80392212,151.66,151.63,0.2]
[1751352600541,3.20986917,151.65,151.63,0.2]
[1751352602140,6.59326168,151.67,151.63,0.2]
[1751352602348,3.20986917,151.66,151.63,0.2]
[1751352603247,9.80393233,151.66,151.63,0.2]
[1751352604445,3.20986917,151.65,151.63,0.2]
[1751352604644,3.20986917,151.64,151.63,0.2]
[1751352605222,9.80443524,151.64,151.63,0.2]
[1751352608850,3.20986917,151.64,151.63,0.2]
[1751352610840,6.59456607,151.64,151.63,0.2]
[1751352611021,9.80443524,151.64,151.63,0.2]
[1751352612839,20.26994886,151.63,151.62,0.2]
[1751352613150,26.0,151.6,151.57,0.2]
[1751352613339,3.20986917,151.58,151.57,0.2]
[1751352613528,26.0,151.6,151.57,0.2]
[1751352613731,3.20986917,151.58,151.57,0.2]
[1751352615056,9.80704557,151.58,151.57,0.2]
[1751352616428,3.20986917,151.58,151.57,0.2]
[1751352617954,9.80704557,151.58,151.57,0.2]
[1751352628679,6.5971764,151.58,151.57,0.2]
[1751352629543,9.80704557,151.58,151.57,0.2]
[1751352633359,82.07049797,151.6,151.57,0.2]
[1751352633360,6.5967412,151.59,151.57,0.2]
[1751352633665,9.80661037,151.59,151.57,0.2]
[1751352634349,6.5967412,151.59,151.57,0.2]
[1751352634570,9.80661037,151.59,151.57,0.2]
[1751352635775,5.01949758,151.58,151.57,0.2]
[1751352640754,42.8501834,151.63,151.57,0.2]
[1751352640755,153.06,151.66,151.57,5.21949758]
[1751352640960,1.6324,151.68,151.59,0.28432314]
[1751352641156,28.3724,151.68,151.61,5.01949758]
[1751352641475,5.01949758,151.65,151.59,0.28432314]
[1751352641783,5.01949758,151.64,151.6,5.01949758]
[1751352641977,11.61381141,151.65,151.61,5.01949758]
[1751352642185,5.01949758,151.65,151.61,5.01949758]
[1751352642977,6.59326168,151.67,151.61,5.01949758]
[1751352643285,5.01949758,151.66,151.62,5.01949758]
[1751352643666,6.59456607,151.64,151.61,5.01949758]
[1751352643853,6.59456607,151.64,151.6,5.01949758]
[1751352644297,11.61406365,151.64,151.6,5.01949758]
[1751352644669,5.01949758,151.61,151.57,0.2]
[1751352644878,5.01949758,151.59,151.57,0.2]
[1751352645884,11.61657003,151.59,151.57,0.2]
[1751352649684,6.59707245,151.59,151.57,0.2]
[1751352649884,11.61657003,151.59,151.57,0.2]
[1751352650274,5.01949758,151.58,151.57,0.2]
[1751352650976,11.61657003,151.59,151.57,0.2]
[1751352651965,5.01949758,151.58,151.57,0.2]
[1751352653381,11.61657003,151.59,151.57,0.2]
[1751352655190,5.01949758,151.58,151.57,0.2]
[1751352656888,6.69543595,151.62,151.57,0.2]
[1751352657064,5.01949758,151.58,151.57,0.2]
[1751352658693,6.69543595,151.62,151.57,0.2]
[1751352658897,6.69543595,151.62,151.57,11.8170259]
[1751352659203,5.01949758,151.61,151.57,11.8170259]
[1751352660263,5.01949758,151.6,151.57,6.79752832]
[1751352660673,0.1,151.62,151.57,6.79752832]
[1751352660884,5.11949758,151.62,151.58,5.01949758]
[1751352661073,5.01949758,151.61,151.57,11.8170259]
[1751352663891,5.11949758,151.62,151.57,11.8170259]
[1751352665392,5.01949758,151.61,151.57,11.8170259]
[1751352666203,6.695539,151.62,151.57,11.8170259]
[1751352666399,5.11949758,151.62,151.57,11.8170259]
[1751352669503,5.01949758,151.61,151.57,11.8170259]
[1751352671096,5.01949758,151.61,151.57,0.2]
[1751352671300,5.01949758,151.6,151.57,0.2]
[1751352671980,6.69562777,151.62,151.57,11.81710267]
[1751352672184,5.01949758,151.61,151.57,6.79760509]
[1751352672390,5.01949758,151.61,151.57,11.81710267]
[1751352674908,5.01949758,151.61,151.57,6.79760509]
[1751352675081,5.01949758,151.58,151.57,0.2]
[1751352677702,6.59652692,151.6,151.57,0.2]
[1751352677703,5.01949758,151.59,151.57,0.2]
[1751352685401,5.01949758,151.59,151.57,6.79748343]
[1751352685807,3.21202718,151.59,151.57,6.79748343]
[1751352687113,6.59593981,151.61,151.57,6.79748343]
[1751352687422,3.21202718,151.59,151.57,6.79748343]
[1751352689222,0.1,151.62,151.58,3.21202718]
[1751352689406,0.1,151.62,151.59,3.21202718]
[1751352689609,0.1,151.62,151.61,3.21202718]
[1751352689909,1.6324,151.68,151.62,18.933972]
[1751352689910,0.1,151.68,151.62,18.933972]
[1751352690111,0.1,151.68,151.65,5.01387135]
[1751352690502,0.1,151.68,151.64,5.01387135]
[1751352690711,0.1,151.68,151.65,5.01387135]
[1751352691701,0.1,151.68,151.64,5.01387135]
[1751352692414,0.1,151.68,151.64,11.60818079]
[1751352696515,5.01387135,151.66,151.63,6.59466037]
[1751352697308,5.01387135,151.67,151.63,6.59466037]
[1751352698697,5.01387135,151.66,151.62,11.60916012]
[1751352700291,5.01387135,151.66,151.62,6.59528877]
[1751352700491,5.01387135,151.66,151.62,11.60916012]
[1751352702614,5.01387135,151.64,151.6,5.29819449]
[1751352703522,6.59326168,151.67,151.6,11.8944003]
[1751352703819,5.01387135,151.64,151.6,11.8944003]
[1751352704337,5.01387135,151.65,151.61,5.01387135]
[1751352705020,5.01387135,151.65,151.61,11.60966554]
[1751352705314,5.01387135,151.62,151.58,26.0]
[1751352705504,5.01387135,151.6,151.57,0.2]
[1751352706427,5.01387135,151.58,151.57,0.2]
[1751352707518,6.59630606,151.6,151.57,0.2]
[1751352707727,5.01387135,151.58,151.57,0.2]
[1751352708704,11.61104775,151.58,151.57,0.2]
[1751352711238,5.01387135,151.58,151.57,0.2]
[1751352713312,5.01387135,151.59,151.57,0.2]
[1751352718040,5.01387135,151.58,151.57,0.2]
[1751352718934,6.5963846,151.6,151.57,0.2]
[1751352719230,5.01387135,151.58,151.57,0.2]
[1751352719437,5.01387135,151.59,151.57,0.2]
[1751352720917,8.4985,151.66,151.58,5.01387135]
[1751352721112,5.01387135,151.64,151.59,5.01387135]
[1751352721310,5.01387135,151.63,151.59,5.01387135]
[1751352721831,0.1,151.62,151.59,5.01387135]
[1751352722632,5.11387135,151.62,151.58,11.61068921]
[1751352724727,0.1,151.62,151.59,5.01387135]
[1751352729141,0.1,151.62,151.58,6.59681786]
[1751352729327,0.1,151.62,151.59,5.01387135]
[1751352730841,5.11387135,151.62,151.59,5.01387135]
[1751352731049,11.70936209,151.62,151.59,5.01387135]
[1751352735736,11.70936209,151.62,151.57,6.79753072]
[1751352736053,11.70936209,151.62,151.58,5.01387135]
[1751352737255,11.70936209,151.62,151.57,6.79753072]
[1751352737256,5.01387135,151.61,151.57,0.2]
[1751352737434,5.01387135,151.59,151.57,0.2]
[1751352738550,6.69549074,151.62,151.57,0.2]
[1751352738551,5.01387135,151.6,151.57,0.2]
[1751352738857,5.01387135,151.6,151.58,0.2]
[1751352739240,11.61046658,151.6,151.58,0.2]
[1751352740053,5.01387135,151.59,151.58,0.2]
[1751352740931,23.66352021,151.59,151.58,0.2]
[1751352741133,23.66352021,151.59,151.57,0.2]
[1751352741443,11.61104775,151.58,151.57,0.2]
[1751352741648,57.00069661,151.58,151.57,0.2]
[1751352747331,6.5971764,151.58,151.57,0.2]
[1751352747533,5.01387135,151.59,151.57,0.2]
[1751352747875,0.1,151.62,151.58,5.01387135]
[1751352748172,5.11387135,151.62,151.58,5.01387135]
[1751352748465,11.70934213,151.62,151.57,6.79745578]
[1751352748765,5.01387135,151.61,151.57,5.21387135]
[1751352750968,5.01387135,151.61,151.57,11.81144842]
[1751352751162,0.1,151.62,151.58,5.01387135]
[1751352751468,5.11387135,151.62,151.58,5.01387135]
[1751352752359,0.1,151.62,151.58,11.61095146]
[1751352752565,0.1,151.62,151.59,5.01387135]
[1751352754772,5.11387135,151.62,151.58,11.61095146]
[1751352755363,5.11387135,151.62,151.58,11.81095146]
[1751352755569,5.11387135,151.62,151.59,5.01387135]
[1751352756462,11.70931969,151.62,151.59,5.01387135]
[1751352760367,5.01387135,151.6,151.58,0.2]
[1751352760750,5.01387135,151.59,151.58,0.2]
[1751352760945,23.18403823,151.62,151.58,0.2]
[1751352761158,5.01387135,151.59,151.58,0.2]
[1751352761359,11.61061255,151.59,151.58,0.2]
[1751352762565,6.5967412,151.59,151.58,0.2]
[1751352764954,11.61061255,151.59,151.58,0.2]
[1751352773191,6.5967412,151.59,151.58,0.2]
[1751352773492,11.61061255,151.59,151.58,0.2]
[1751352788185,11.61061255,151.59,151.58,0.2]
[1751352789388,11.71061255,151.59,151.58,0.2]
[1751352797204,30.64458455,151.59,151.58,0.2]
[1751352798607,11.71061255,151.59,151.58,0.2]
[1751352808132,57.38458455,151.59,151.58,0.2]
[1751352808302,62.3293887,151.59,151.58,0.2]
[1751352809116,57.38458455,151.59,151.58,0.2]
[1751352809500,62.32940702,151.59,151.58,0.2]
[1751352809823,57.38458455,151.59,151.58,0.2]
[1751352812225,38.45061255,151.59,151.58,0.2]
[1751352812525,11.71061255,151.59,151.58,0.2]
[1751352813738,6.6967412,151.59,151.58,0.2]
[1751352814034,11.71061255,151.59,151.58,0.2]
[1751352814527,0.1,151.59,151.58,0.2]
[1751352814726,6.6967412,151.59,151.58,0.2]
[1751352815805,11.71061255,151.59,151.58,0.2]
[1751352817241,57.38458455,151.59,151.58,0.2]
[1751352817408,33.4367412,151.59,151.58,0.2]
[1751352817608,38.45061255,151.59,151.58,0.2]
[1751352817810,33.4367412,151.59,151.58,0.2]
[1751352818306,11.71061255,151.59,151.58,0.2]
[1751352825525,30.64458455,151.59,151.58,0.2]
[1751352826427,56.64458455,151.59,151.58,0.2]
[1751352826938,61.58934157,151.59,151.58,0.2]
[1751352827132,56.64458455,151.59,151.58,0.2]
[1751352835150,172.48432314,151.58,151.57,0.2]
[1751352835325,199.22432314,151.58,151.57,0.2]
[1751352835525,204.23819449,151.58,151.57,0.2]
[1751352836154,210.83537089,151.58,151.57,0.2]
[1751352841041,83.28501975,151.58,151.57,0.2]
[1751352842845,83.28501975,151.58,151.56,0.2]
[1751352842846,18.64964886,151.57,151.56,0.2]
[1751352843073,174.80150022,151.57,151.56,0.2]
[1751352844041,181.39911188,151.57,151.56,0.2]
[1751352845238,176.46113187,151.57,151.56,0.2]
[1751352845663,176.74545501,151.57,151.56,0.2]
[1751352847246,203.48545501,151.57,151.56,0.2]
[1751352849468,229.48545501,151.57,151.56,0.2]
[1751352853446,202.74545501,151.57,151.56,0.2]
[1751352853650,210.55148301,151.57,151.56,0.2]
[1751352853851,183.81148301,151.57,151.56,0.2]
[1751352854053,178.79761166,151.57,151.56,0.2]
[1751352854266,183.81148301,151.57,151.56,0.2]
[1751352854504,157.81148301,151.57,151.56,0.2]
[1751352858384,184.55148301,151.57,151.56,0.2]
[1751352864991,203.48545501,151.57,151.56,0.2]
[1751352865286,205.01165501,151.57,151.56,0.2]
[1751352867084,186.07768301,151.57,151.56,0.2]
[1751352867287,157.81148301,151.57,151.56,0.2]
[1751352869790,152.79761166,151.57,151.56,0.2]
[1751352871066,157.91148301,151.57,151.56,0.2]
[1751352871376,152.89761166,151.57,151.56,0.2]
[1751352872176,0.1,151.57,151.56,0.2]
[1751352872672,0.1,151.57,151.56,5.21387135]
[1751352874795,0.1,151.57,151.56,30.74589032]
[1751352875300,0.1,151.57,151.56,56.74589032]
[1751352875512,0.1,151.57,151.56,26.2]
[1751352875714,0.1,151.57,151.56,31.21387135]
[1751352876205,0.1,151.57,151.56,26.2]
[1751352876407,0.1,151.57,151.56,31.21387135]
[1751352876873,0.1,151.57,151.56,5.21387135]
[1751352877076,0.1,151.57,151.56,0.2]
[1751352884519,0.1,151.57,151.56,5.21387135]
[1751352893408,0.1,151.57,151.56,11.81191832]
[1751352893587,0.1,151.57,151.56,5.21387135]
[1751352896611,0.1,151.57,151.56,0.2]
[1751352896786,0.1,151.57,151.56,5.21387135]
[1751352902421,0.1,151.57,151.56,0.2]
[1751352902631,0.1,151.57,151.56,5.21387135]
[1751352905827,0.1,151.57,151.56,3.41191948]
[1751352906332,3.31191948,151.57,151.56,0.2]
[1751352906809,0.1,151.57,151.56,0.2]
[1751352909537,3.31191948,151.57,151.56,0.2]
[1751352909716,9.90953114,151.57,151.56,0.2]
[1751352909918,10.19385428,151.57,151.56,0.2]
[1751352910240,54.84350314,151.57,151.56,0.2]
[1751352910710,22.14589148,151.56,151.55,0.2]
[1751352911319,0.28432314,151.55,151.54,0.2]
[1751352911529,3.49624262,151.55,151.54,0.2]
[1751352911933,44.64964886,151.52,151.51,0.2]
[1751352912124,81.72474766,151.52,151.51,0.2]
[1751352913238,88.32453646,151.52,151.51,0.2]
[1751352914213,78.2737608,151.52,151.51,0.2]
[1751352914414,88.32453646,151.52,151.51,0.2]
[1751352918639,64.64949977,151.52,151.51,0.2]
[1751352918847,11.6249043,151.53,151.51,0.2]
[1751352919057,6.59951647,151.53,151.51,0.2]
[1751352919824,11.6249043,151.53,151.51,0.2]
[1751352920946,6.59804697,151.56,151.51,5.22538783]
[1751352921252,5.02538783,151.55,151.51,5.22538783]
[1751352922122,5.02538783,151.53,151.51,0.2]
[1751352923846,11.62500629,151.53,151.51,0.2]
[1751352924644,5.02538783,151.52,151.51,0.2]
[1751352926250,11.62517663,151.52,151.51,0.2]
[1751352927145,6.5997888,151.52,151.51,0.2]
[1751352929574,11.62517663,151.52,151.51,0.2]
[1751352931347,6.59804697,151.56,151.51,0.2]
[1751352931551,11.6234348,151.56,151.52,5.02538783]
[1751352931749,6.59804697,151.56,151.52,5.02538783]
[1751352932449,6.59804697,151.56,151.53,5.02538783]
[1751352934159,6.59804697,151.56,151.52,5.02538783]
[1751352934360,6.59804697,151.56,151.53,5.02538783]
[1751352934952,6.59804697,151.56,151.51,6.8001977]
[1751352935161,6.59804697,151.56,151.52,5.02538783]
[1751352935863,6.69804697,151.56,151.52,5.02538783]
[1751352937090,11.7234348,151.56,151.52,5.02538783]
[1751352942072,6.69804697,151.56,151.52,5.02538783]
[1751352942271,11.7234348,151.56,151.52,5.02538783]
[1751352944161,11.7234348,151.56,151.51,5.22538783]
[1751352944355,5.02538783,151.53,151.51,0.2]
[1751352944559,5.02538783,151.52,151.51,0.2]
[1751352945466,5.02538783,151.53,151.51,0.2]
[1751352946158,5.02538783,151.54,151.51,0.2]
[1751352946541,6.59935326,151.53,151.51,0.2]
[1751352946749,0.38432314,151.56,151.52,5.02538783]
[1751352946963,6.59854367,151.55,151.52,5.02538783]
[1751352951661,6.59854367,151.55,151.51,5.22538783]
[1751352952665,6.69854367,151.55,151.51,5.22538783]
[1751352957295,11.7239315,151.55,151.51,5.22538783]
[1751352959307,6.69854367,151.55,151.51,5.22538783]
[1751352960993,11.7239315,151.55,151.51,5.22538783]
[1751352965907,28.22013737,151.55,151.51,0.2]
[1751352966110,23.19474954,151.55,151.51,0.2]
[1751352966297,5.02538783,151.53,151.51,0.2]
[1751352966482,23.19474954,151.55,151.51,5.22538783]
[1751352966483,28.22013737,151.55,151.51,5.22538783]
[1751352966689,6.69854367,151.55,151.51,5.22538783]
[1751352967186,6.69854367,151.55,151.52,5.02538783]
[1751352970716,6.69854367,151.55,151.51,5.22538783]
[1751352970892,6.69854367,151.55,151.52,5.02538783]
[1751352973822,6.69854044,151.55,151.53,5.02538783]
[1751352975117,6.69854044,151.55,151.51,1.8625]
[1751352975118,6.69854044,151.55,151.52,5.02538783]
[1751352975325,5.02538783,151.54,151.51,1.8625]
[1751352976025,11.72392827,151.55,151.51,6.88788783]
[1751352979505,6.69854044,151.55,151.51,6.88788783]
[1751352979704,5.02538783,151.54,151.51,0.2]
[1751352980016,0.28432314,151.54,151.51,0.2]
[1751352980310,5.02538783,151.52,151.51,0.2]
[1751352981303,11.62517663,151.52,151.51,0.2]
[1751352986630,11.7673382,151.52,151.51,0.2]
[1751352986822,11.90949977,151.52,151.51,0.2]
[1751352987141,38.64949977,151.52,151.51,0.2]
[1751352991932,33.62411194,151.52,151.51,0.2]
[1751352992141,38.64949977,151.52,151.51,0.2]
[1751352998036,11.90949977,151.52,151.51,0.2]
[1751352999855,10.09989298,151.52,151.51,0.2]
[1751353003654,36.09989298,151.52,151.51,0.2]
[1751353007340,32.88411194,151.52,151.51,0.2]
[1751353007541,36.09989298,151.52,151.51,0.2]
[1751353015867,213.812666,151.52,151.51,0.2]
[1751353016544,200.94954184,151.52,151.51,0.2]
[1751353017752,213.812666,151.52,151.51,0.2]
[1751353019379,218.75485452,151.52,151.51,0.2]
[1751353019553,213.812666,151.52,151.51,0.2]
[1751353020274,194.40757237,151.52,151.51,0.2]
[1751353021391,48.20757237,151.52,151.51,0.2]
[1751353022189,43.265666,151.52,151.51,0.2]
[1751353022396,48.20785157,151.52,151.51,0.2]
[1751353023596,32.12894637,151.52,151.51,0.2]
[1751353023793,30.3337848,151.52,151.51,0.2]
[1751353023979,28.60738027,151.52,151.51,0.2]
[1751353024173,28.74954184,151.52,151.51,0.2]
[1751353031295,35.81556984,151.52,151.51,0.2]
[1751353031617,62.55556984,151.52,151.51,0.2]
[1751353031817,62.83989298,151.52,151.51,0.2]
[1751353031996,36.09989298,151.52,151.51,0.2]
[1751353032190,62.83989298,151.52,151.51,0.2]
[1751353036629,59.62411194,151.52,151.51,0.2]
[1751353036811,62.83989298,151.52,151.51,0.2]
[1751353038401,32.5997888,151.52,151.51,0.2]
[1751353039034,35.81556984,151.52,151.51,0.2]
[1751353039734,36.09989298,151.52,151.51,0.2]
[1751353041741,62.83989298,151.52,151.51,0.2]
[1751353044936,55.48954184,151.52,151.51,0.2]
[1751353045136,60.43120483,151.52,151.51,0.2]
[1751353046553,73.29432899,151.52,151.51,0.2]
[1751353048127,60.43120483,151.52,151.51,0.2]
[1751353049040,55.48954184,151.52,151.51,0.2]
[1751353050752,68.352666,151.52,151.51,0.2]
[1751353051134,73.29406878,151.52,151.51,0.2]
[1751353051447,68.352666,151.52,151.51,0.2]
[1751353051754,62.32771742,151.52,151.51,0.2]
[1751353052252,57.30073911,151.52,151.51,0.2]
[1751353054836,62.32771742,151.52,151.51,0.2]
[1751353057551,67.2713337,151.52,151.51,0.2]
[1751353063864,74.1113337,151.52,151.51,0.2]
[1751353066347,69.16771742,151.52,151.51,0.2]
[1751353067366,74.11093062,151.52,151.51,0.2]
[1751353070967,37.316974,151.52,151.51,0.2]
[1751353071268,74.11093062,151.52,151.51,0.2]
[1751353071866,80.14270765,151.52,151.51,0.2]
[1751353077076,48.62447187,151.52,151.51,0.2]
[1751353078287,41.78447187,151.52,151.51,0.2]
[1751353078478,9.9590971,151.52,151.51,0.2]
[1751353078679,36.6990971,151.52,151.51,0.2]
[1751353078867,10.10125867,151.52,151.51,0.2]
[1751353079063,62.84125867,151.52,151.51,0.2]
[1751353084104,6.5997888,151.52,151.51,0.2]
[1751353084276,0.1,151.53,151.51,11.73124673]
[1751353084594,0.1,151.53,151.52,34.73538251]
[1751353084785,0.1,151.55,151.54,3.21714673]
[1751353087910,0.1,151.55,151.54,5.01954563]
[1751353088515,6.69848234,151.55,151.54,5.01954563]
[1751353088814,0.1,151.55,151.52,5.01954563]
[1751353089612,6.69848234,151.55,151.52,5.01954563]
[1751353090126,6.69848234,151.55,151.51,13.53364563]
[1751353090812,6.69848234,151.55,151.51,8.5141]
[1751353091031,5.01954563,151.54,151.51,8.5141]
[1751353093309,11.71802797,151.55,151.51,13.53364563]
[1751353094389,5.01954563,151.53,151.51,0.2]
[1751353095813,6.5997888,151.52,151.51,0.2]
[1751353096813,6.59891777,151.54,151.51,0.2]
[1751353097735,6.59891777,151.54,151.51,5.21954563]
[1751353100228,6.69891777,151.54,151.51,5.21954563]
[1751353104941,6.69891777,151.54,151.51,0.2]
[1751353105120,6.69891777,151.54,151.51,5.21954563]
[1751353108040,11.7184634,151.54,151.51,0.2]
[1751353108840,5.01954563,151.52,151.51,0.2]
[1751353109728,11.61933443,151.52,151.51,0.2]
[1751353113027,37.90365757,151.52,151.51,0.2]
[1751353117325,64.62365757,151.52,151.51,0.2]
[1751353121452,37.90365757,151.52,151.51,0.2]
[1751353122653,32.88411194,151.52,151.51,0.2]
[1751353122854,37.90365757,151.52,151.51,0.2]
[1751353125063,11.90365757,151.52,151.51,0.2]
[1751353133766,10.100018,151.52,151.51,0.2]
[1751353140988,44.64964886,151.5,151.49,0.0314]
[1751353141162,74.86987806,151.5,151.49,0.0314]
[1751353141480,56.2202292,151.5,151.49,0.0314]
[1751353142151,30.01590606,151.5,151.49,0.0314]
[1751353142975,9.81656612,151.5,151.49,0.0314]
[1751353143151,62.61656612,151.5,151.49,0.0314]
[1751353143669,32.60066006,151.5,151.49,0.0314]
[1751353143973,35.81656612,151.5,151.49,0.0314]
[1751353144794,32.60066006,151.5,151.49,0.0314]
[1751353145071,6.60066006,151.5,151.49,0.0314]
[1751353149388,9.81656612,151.5,151.49,0.0314]
[1751353160078,6.60066006,151.5,151.49,0.0314]
[1751353161511,9.81656612,151.5,151.49,0.0314]
[1751353167528,8.81656612,151.5,151.49,0.0314]
[1751353167829,3.21590606,151.51,151.49,0.0314]
[1751353168629,0.1,151.5,151.49,0.0314]
[1751353169929,6.70066006,151.5,151.49,0.0314]
[1751353172013,9.91656612,151.5,151.49,0.0314]
[1751353191654,6.70066006,151.5,151.49,0.0314]
[1751353192362,9.91656612,151.5,151.49,0.0314]
[1751353197458,9.83261397,151.5,151.49,0.0314]
[1751353201154,0.01604785,151.5,151.49,0.0314]
[1751353201376,6.61670791,151.5,151.49,0.0314]
[1751353201548,9.83261397,151.5,151.49,0.0314]
[1751353202964,0.01604785,151.5,151.49,0.0314]
[1751353203163,3.23195391,151.5,151.49,0.0314]
[1751353205179,9.83261397,151.5,151.49,0.0314]
[1751353206771,10.11693711,151.5,151.49,0.0314]
[1751353207456,36.11693711,151.5,151.49,0.0314]
[1751353209774,26.0,151.48,151.47,62.59571456]
[1751353210078,56.2602292,151.48,151.47,62.59571456]
[1751353210982,62.86176075,151.48,151.47,62.59571456]
[1751353225898,81.51140961,151.48,151.47,62.59571456]
[1751353226205,81.51140961,151.48,151.47,1.65610707]
[1751353226572,88.37140961,151.48,151.47,1.65610707]
[1751353227867,101.23503385,151.48,151.47,1.65610707]
[1751353229085,29.21590606,151.46,151.45,0.2]
[1751353229295,62.55830933,151.46,151.45,0.2]
[1751353232783,35.81830933,151.46,151.45,0.2]
[1751353232985,62.55830933,151.46,151.45,0.2]
[1751353234696,62.84263247,151.46,151.45,0.2]
[1751353240426,59.62672641,151.46,151.45,0.2]
[1751353240635,6.60240327,151.46,151.45,0.2]
[1751353240805,36.55830933,151.46,151.45,0.2]
[1751353241003,6.60109578,151.49,151.45,1.8663]
[1751353241313,0.01604785,151.5,151.45,1.8663]
[1751353241314,0.01604785,151.5,151.48,3.21590606]
[1751353241509,0.01604785,151.5,151.49,6.5553]
[1751353245443,0.01604785,151.5,151.46,5.02392896]
[1751353245444,5.03997681,151.5,151.46,5.02392896]
[1751353245609,5.02392896,151.48,151.45,8.4216]
[1751353246841,11.62569511,151.48,151.45,8.4216]
[1751353247633,6.60176615,151.48,151.45,8.4216]
[1751353247840,11.62569511,151.48,151.45,8.4216]
[1751353253747,5.02392896,151.47,151.45,8.4216]
[1751353253939,6.60176615,151.48,151.45,8.4216]
[1751353254238,5.02392896,151.47,151.45,8.4216]
[1751353254622,11.62595597,151.47,151.45,8.4216]
[1751353255843,5.02392896,151.46,151.45,0.2]
[1751353256547,11.62633223,151.46,151.45,0.2]
[1751353261536,5.02392896,151.48,151.45,0.2]
[1751353262759,6.60196738,151.47,151.45,0.2]
[1751353264952,11.62589634,151.47,151.45,0.2]
[1751353266549,5.02392896,151.46,151.45,0.2]
[1751353269269,11.62633223,151.46,151.45,0.2]
[1751353270366,6.60240327,151.46,151.45,0.2]
[1751353270551,11.62633223,151.46,151.45,0.2]
[1751353271067,6.60240327,151.46,151.45,0.2]
[1751353271375,11.62633223,151.46,151.45,0.2]
[1751353282166,6.60240327,151.46,151.45,0.2]
[1751353282378,11.62609089,151.47,151.45,0.2]
[1751353282573,6.60216193,151.47,151.45,0.2]
[1751353284081,5.02392896,151.47,151.45,0.2]
[1751353285682,11.625902,151.47,151.45,0.2]
[1751353286187,6.60125849,151.49,151.45,5.22392896]
[1751353286369,11.62518745,151.49,151.45,5.22392896]
[1751353287873,5.02392896,151.48,151.45,0.2]
[1751353288659,6.60125849,151.49,151.45,0.2]
[1751353288867,5.02392896,151.48,151.45,0.2]
[1751353289178,11.64079169,151.5,151.46,5.02392896]